Cogmind - Beta 16 @@@ ROGUE MODE // 2025.11.07 @ 20:11:10 Player: khaki-45e Result: Destroyed by EV-8FJ(R) with Subdweller Laser Performance ------------- Evolutions (0) 0 Regions Visited (3) 600 Robots Destroyed (25) 125 Value Destroyed (528) 528 Prototype IDs (14) 280 Alien Tech Used (0) 0 Bonus (39) 39 TOTAL SCORE: 1572 Bonus ------- Follower Combat Kills 39 Cogmind --------- Core Integrity 0/250 Matter 300/300 Energy 170/170 System Corruption 0% Temperature Cool (6) Movement Rolling (95) Ox1 Location -10/Subcaves Parts ------- > --- POWER (1) -------- Makeshift Power Source > --- PROPULSION (2) --- Spiked Treads Wheel > --- UTILITY (2) ------ Medium Storage Unit Signal Interpreter > --- WEAPON (2) ------- Grenade Launcher Makeshift Spear > --- INVENTORY (10) --- Light Angular Momentum Engine Arachnoskeleton Large Storage Unit Compact Matter Pod (150) Seismic Detector Hacking Suite Splice Drone Bay Beam Cannon Peak State ------------ > --- POWER ------------ Makeshift Power Source > --- PROPULSION ------- Spiked Treads Wheel > --- UTILITY ---------- Medium Storage Unit Signal Interpreter > --- WEAPON ----------- Grenade Launcher Makeshift Spear > --- INVENTORY -------- Light Angular Momentum Engine Arachnoskeleton Wheel Large Storage Unit Compact Matter Pod Seismic Detector Splice Drone Bay Beam Cannon [Rating: 18] Favorites ----------- Power Light Nuclear Core Engine Makeshift Power Source Power Core Light Nuclear Core Propulsion Wheel Treads Spiked Treads Wheel Wheel Utility Medium Storage Unit Device Seismic Detector Storage Medium Storage Unit Processor Signal Interpreter Weapon Grenade Launcher Energy Gun EM Pulse Gun Energy Cannon Beam Cannon Launcher Grenade Launcher Special Weapon Flamer Piercing Weapon Makeshift Spear Build | -11 -10 -10 -10 ------- Run | Yrd Mat Min Sub Slots Evolved . | . . . . Power . | . . . . Propulsion . | . . . . Utility . | . . . . Weapon . | . . . . Parts Attached 24 | 6 5 5 8 Power 5 | 1 . 2 2 Engine 4 | 1 . 1 2 Core 1 | . . 1 . Reactor . | . . . . Propulsion 7 | 2 . 1 4 Treads 1 | . . . 1 Leg . | . . . . Wheel 6 | 2 . 1 3 Hover . | . . . . Flight . | . . . . Utility 5 | 1 3 1 . Device 1 | . 1 . . Storage 2 | 1 1 . . Processor 2 | . 1 1 . Hackware . | . . . . Protection . | . . . . Artifact . | . . . . Weapon 7 | 2 2 1 2 Energy Gun 2 | 2 . . . Energy Cannon 1 | . 1 . . Ballistic Gun . | . . . . Ballistic Cannon . | . . . . Launcher 2 | . 1 1 . Special Weapon 1 | . . . 1 Impact Weapon . | . . . . Slashing Weapon . | . . . . Piercing Weapon 1 | . . . 1 Special Melee Weapon . | . . . . Unidentified Prototypes . | . . . . Parts Lost 6 | . 2 . 4 Power 2 | . 1 . 1 Propulsion 2 | . . . 2 Utility . | . . . . Weapon 2 | . 1 . 1 Highest Loss Streak 3 | . 2 . 3 To Critical Strikes . | . . . . Average Backups 8 | 1 8 9 8 Power 1 | . 1 1 1 Propulsion . | . . . . Utility 5 | . 4 6 5 Weapon 1 | . 1 1 1 Tool/Special . | . . . . Unused Backups 11 | . . 4 7 Power 2 | . . 1 1 Propulsion 2 | . . 1 1 Utility 7 | . . 2 5 Weapon . | . . . . Tool/Special . | . . . . Average Slot Usage (%) 97 | . 98 98 96 Engine 8 | . 13 3 10 Core 5 | . . 10 3 Treads 2 | . . . 6 Wheel 23 | . 28 28 18 Device 1 | . 8 . . Storage 14 | . 14 14 14 Processor 11 | . 4 14 14 Energy Gun 1 | . 6 . . Energy Cannon 7 | . 8 14 1 Launcher 12 | . 12 12 13 Piercing Weapon 5 | . . . 12 Peak Build Rating 18 | 6 8 11 18 Average Rating 12 | 4 7 10 15 On Entrance 5 | . 6 6 11 Avg Prop Armor Cover (%) 13 | . . . 13 Naked Turns . | . . . . Heaviest Build 22 | 14 22 21 21 Greatest Support 30 | 26 26 26 30 Greatest Overweight (x) 1 | . . . 1 Average Overweight (x) . | . . . . Largest Inventory Capacity 10 | 8 10 10 10 Average Capacity 9 | 6 9 10 10 Most Carried 10 | 5 10 10 10 Average Carried 9 | 1 8 9 9 Final Capacity 10 | 8 10 10 10 Final Carried 10 | 3 10 10 10 Class Distribution -------------------- 65% | Mutant 34% | Derelict-Mutant Dominant Class ---------------- Mutant | -10/Materials Mutant | -10/Mines Derelict-Mutant | -10/Subcaves Resources | -11 -10 -10 -10 ----------- Run | Yrd Mat Min Sub Matter Collected 710 | 177 258 80 195 Remotely . | . . . . Salvage Created 475 | 30 239 116 90 Parts 51 | 5 27 12 7 Haulers Intercepted 2 | . 2 . . Recyclers Shooed . | . . . . Parts Field Recycled . | . . . . Retrieved Matter . | . . . . Parts Self-Destructed 15 | . . . 15 Prevented . | . . . . Parts Restored . | . . . . Kills | -11 -10 -10 -10 ------- Run | Yrd Mat Min Sub Combat Hostiles Destroyed 17 | . 6 4 7 Cannons 4 | . 1 1 2 AOE 13 | . 5 3 5 Classes Destroyed 9 | 1 6 1 1 Worker 1 | . 1 . . Tunneler 1 | 1 . . . Hauler 2 | . 2 . . Recycler 1 | . . 1 . Operator 1 | . 1 . . Watcher 2 | . 2 . . Swarmer 8 | . 3 3 2 Grunt 4 | . 3 1 . Subdweller 5 | . . . 5 Best Kill Streak 4 | 1 4 3 2 Combat Bots Only 3 | . 3 2 2 Max Kills in Single Turn 3 | 1 2 3 2 Gunslinging . | . . . . Exploded 2 | . 1 2 2 Melee . | . . . . Uniques/NPCs Destroyed . | . . . . Combat | -11 -10 -10 -10 -------- Run | Yrd Mat Min Sub Hostile Shots Fired 110 | . 15 17 78 Missed 41 | . 6 6 29 Hits 69 | . 9 11 49 Projectile 69 | . 9 11 49 AOE 2 | . 2 . . Critical Strikes 2 | . 1 . 1 Damage Taken 925 | 1 305 109 510 Core 255 | . 57 38 160 Absorbed by Shields . | . . . . Core Remaining (%) 100 | 100 . . . Volleys Fired 83 | 3 46 15 19 Largest 2 | 2 2 1 1 Hottest 100 | 80 70 60 100 Shots Fired 87 | 6 47 15 19 Gun 29 | 6 23 . . Cannon 27 | . 11 12 4 Launcher 27 | . 13 3 11 Special 4 | . . . 4 Kinetic . | . . . . Thermal 31 | . 11 12 8 Explosive 27 | . 13 3 11 Electromagnetic 29 | 6 23 . . Robot Hit Streak 15 | 2 7 2 15 Robot Miss Streak 7 | 2 7 3 . Penetration Max . | . . . . Secondary Targets . | . . . . Shots Hit Robots 46 | 3 22 6 15 Core Hits 37 | 1 19 5 12 Critical Kills . | . . . . Critical Parts Destroyed . | . . . . Critical Strikes 1 | . 1 . . Corrupt 1 | . 1 . . Melee Attacks 17 | . . . 17 Impact . | . . . . Slashing . | . . . . Piercing 17 | . . . 17 Sneak Attacks . | . . . . Combat Hostiles . | . . . . Follow-up Attacks . | . . . . Damage Inflicted 1826 | 42 698 304 782 Guns 141 | 39 102 . . Cannons 259 | . 121 87 51 Explosions 1390 | . 475 217 698 Melee . | . . . . Ramming 3 | 3 . . . Kinetic . | . . . . Thermal 292 | . 121 87 84 Explosive 1390 | . 475 217 698 Electromagnetic 141 | 39 102 . . Impact . | . . . . Slashing . | . . . . Piercing . | . . . . Highest Corruption . | . . . . Average Corruption . | . . . . Corruption Purged . | . . . . Corruption Blocked . | . . . . Overload Shots . | . . . . Overflow Damage 2 | . 2 . . Projectiles . | . . . . Explosions 2 | . 2 . . Melee . | . . . . Knockbacks . | . . . . Impact . | . . . . Kinetic . | . . . . Secondary . | . . . . Self-Inflicted Damage 14 | 1 7 6 . Shots 3 | . 2 1 . Rammed 1 | 1 . . . Targets Rammed 1 | 1 . . . Kicked . | . . . . Crushed . | . . . . Highest Temperature 180 | 54 86 180 17 Average Temperature 45 | 28 28 67 13 Received Heat Transfer 234 | . 27 21 186 Siege Activations . | . . . . Martial Activations . | . . . . Shielding Activations . | . . . . Robots Disrupted . | . . . . Combat Hostiles . | . . . . Robots Corrupted . | . . . . Combat Hostiles . | . . . . Parts Fried . | . . . . Impact Corruptions . | . . . . Robots Melted . | . . . . Combat Hostiles . | . . . . Parts Melted 1 | . . . 1 Heat Transferred 795 | . 259 185 351 Parts Sabotaged . | . . . . Parts Stolen . | . . . . Parts Stripped . | . . . . Power Chain Reactions . | . . . . Alert | -11 -10 -10 -10 ------- Run | Yrd Mat Min Sub Maximum Alert Level . | . . . . Low Security (%) 100 | 100 100 100 . Level 1 . | . . . . Level 2 . | . . . . Level 3 . | . . . . Level 4 . | . . . . Level 5 . | . . . . High Security . | . . . . Max Security . | . . . . Peak Influence 165 | 5 165 74 . Initial 8 | . . 8 . Average 40 | . 85 15 . Influence Increases 649 | 5 287 204 153 Destroy 0b10 Robot/C 300 | . 120 120 60 Destroy 0b10 Robot/NC 40 | 5 30 5 . Destroy Leader 58 | . 38 20 . Allied During Kill 23 | . . 20 3 Successful Hack 5 | . 5 . . Disable Machine 30 | . 30 . . Destroy Structure 88 | . 64 24 . Lose Combat Pursuer 105 | . . 15 90 Influence Decreases 649 | 5 264 227 153 Entered New Map 15 | . . 15 . Time Decay 534 | 5 244 212 73 Lost Part 40 | . 20 . 20 Lost Ally 60 | . . . 60 Squads Dispatched 1 | . 1 . . Investigation . | . . . . Extermination . | . . . . Reinforcement 1 | . 1 . . Assault . | . . . . Garrison . | . . . . Intercept . | . . . . Searches Triggered . | . . . . Construction Impeded . | . . . . Haulers Reinforced . | . . . . Active Scanning Responses . | . . . . Cargo Convoy Interrupts . | . . . . Stealth | -11 -10 -10 -10 --------- Run | Yrd Mat Min Sub Distress Signals 1 | . 1 . . Communications Jammed . | . . . . Distress Signals . | . . . . Times Spotted 39 | . 14 7 18 Peak Tracking Total 6 | . 3 3 6 Tactical Retreats 4 | . . 1 3 Traps | -11 -10 -10 -10 ------- Run | Yrd Mat Min Sub Traps Triggered 1 | . 1 . . Indirectly . | . . . . Trap Hack Attempts . | . . . . Triggered . | . . . . Disarmed . | . . . . Reprogrammed . | . . . . Reused . | . . . . Traps Extracted . | . . . . Installed . | . . . . Triggered . | . . . . Machines | -11 -10 -10 -10 ---------- Run | Yrd Mat Min Sub Machines Disabled 3 | . 2 . 1 Max in Single Turn 1 | . 1 . 1 Machines Repaired . | . . . . Machines Dismantled . | . . . . Machines Sabotaged . | . . . . Overloaded Fab Kills . | . . . . Hacking | -11 -10 -10 -10 --------- Run | Yrd Mat Min Sub Machines Accessed 5 | . 2 1 2 Terminals 2 | . 2 . . Fabricators . | . . . . Repair Stations . | . . . . Recycling Units . | . . . . Scanalyzers . | . . . . Garrison Access . | . . . . Total Hacks 9 | . 3 1 5 Successful 7 | . 1 1 5 Failed 2 | . 2 . . Catastrophic . | . . . . Database Lockouts . | . . . . Manual . | . . . . Terminals 3 | . 3 . . Fabricators . | . . . . Repair Stations . | . . . . Recycling Units . | . . . . Scanalyzers . | . . . . Garrison Access . | . . . . Terminal Hacks 7 | . 1 1 5 Record 4 | . . . 4 Prototype ID Bank 1 | . 1 . . Open Door 1 | . . 1 . Proto ID Catalog 1 | . . . 1 Fabricator Hacks . | . . . . Repair Station Hacks . | . . . . Recycling Unit Hacks . | . . . . Scanalyzer . | . . . . Garrison Access Hacks . | . . . . Unauthorized Hacks . | . . . . Terminals . | . . . . Fabricators . | . . . . Repair Stations . | . . . . Recycling Units . | . . . . Scanalyzers . | . . . . Garrison Access . | . . . . Data Cores Recovered . | . . . . Used . | . . . . Hacking Detections 1 | . 1 . . Full Trace Events 1 | . 1 . . Feedback Events . | . . . . Feedback Blocked . | . . . . Robot Schematics Acquired . | . . . . Robots Built . | . . . . Authchips . | . . . . Time . | . . . . Total Robot Build Rating . | . . . . Part Schematics Acquired . | . . . . Parts Built . | . . . . Authchips . | . . . . Time . | . . . . Total Part Build Rating . | . . . . Part Studies Acquired . | . . . . Parts Repaired . | . . . . Time . | . . . . Parts Recycled . | . . . . Recycled Matter . | . . . . Retrieved Matter . | . . . . Retrieved Components . | . . . . Parts Scanalyzed . | . . . . Part Schematics Acquired . | . . . . Parts Damaged . | . . . . Bothacking | -11 -10 -10 -10 ------------ Run | Yrd Mat Min Sub Used RIF Installer . | . . . . Robots Hacked . | . . . . Non-combat . | . . . . Combat . | . . . . Robot Hacks Applied . | . . . . Relay Couplers Released . | . . . . Fabnet Peak Effective % . | . . . . Robots Rewired . | . . . . Allies Hacked . | . . . . Hacks Repelled . | . . . . Allies | -11 -10 -10 -10 -------- Run | Yrd Mat Min Sub Total Allies 5 | . . 5 . Largest Group 5 | . . 5 5 Highest-Rated Group 89 | . . 89 89 Highest-Rated Ally 31 | . . 31 31 Total Orders . | . . . . Ally Attacks 38 | . . 9 29 Total Damage 469 | . . 83 386 Kills 3 | . . 2 1 Allies Corrupted . | . . . . Allies Melted . | . . . . Intel | -11 -10 -10 -10 ------- Run | Yrd Mat Min Sub Active Infowar (turns) 1149 | . 509 640 . Seismic 355 | . 355 . . T.N.C. 794 | . 154 640 . Robot Analysis Total . | . . . . Derelict Logs Recovered 2 | . . 2 . Drone Launches . | . . . . Drone Recoveries . | . . . . Exploration | -11 -10 -10 -10 ------------- Run | Yrd Mat Min Sub Turns Passed 2704 | 69 542 877 1216 Spaces Moved 2025 | 52 352 767 854 Core 5 | 5 . . . Treads 53 | . . . 53 Legs . | . . . . Wheels 1967 | 47 352 767 801 Hover . | . . . . Flight . | . . . . Fastest Speed 50 | 50 90 90 80 Average Speed 92 | 86 90 90 96 Slowest Speed 160 | 90 90 90 160 Overloaded Moves . | . . . . Propulsion Burnouts . | . . . . Robots Hopped . | . . . . Potential Cave-ins . | . . . . Cave-ins Triggered . | . . . . Exploration Rate (%) 53 | 3 57 100 55 Regions Visited 3 Branch Regions 2 Pre-discovered Areas 3 | . . 1 2 Known Exits Taken 1 | . . 1 . Unknown Exits Taken 2 | 1 1 . . Scrap Searched 1 | . . 1 . Spaces Dug 2 | . . . 2 Terrain Destroyed 162 | . 81 24 57 Melee 2 | . . . 2 Projectile . | . . . . AOE 160 | . 81 24 55 Terrain Rammed . | . . . . Walls Destroyed . | . . . . Machines Disabled . | . . . . Actions | -11 -10 -10 -10 --------- Run | Yrd Mat Min Sub Total 2748 | 70 529 943 1206 Wait 549 | . 115 141 293 Move 2022 | 51 351 766 854 Hop . | . . . . Pick Up 34 | 9 10 9 6 Fast Attach 2 | . . . 2 Attach 15 | 6 2 3 4 Detach 1 | . . . 1 Swap 9 | . 3 2 4 Drop 15 | . 2 7 6 Fire 83 | 3 46 15 19 Melee 17 | . . . 17 Ram 1 | 1 . . . Kick . | . . . . Crush . | . . . . Escape Stasis . | . . . . Rewire . | . . . . Trap . | . . . . Miscellaneous . | . . . . Route ------- -11/Scrapyard -10/Materials (discovered 3 exits: *Mat / *Min / *Sub) -10/Mines (discovered 3 exits: *Mat x2 / *Sub) -10/Subcaves (discovered 1 exit: *Mat) History --------- Turn | Location | Event 11 | -11/Scrapyard | Discovered new exit (range 15) 70 | -11/Scrapyard | Entered Materials 300 | -10/Materials | Build established: Mutant 300 | -10/Materials | Discovered new exit (range 16) 300 | -10/Materials | Discovered new exit (range 11) 337 | -10/Materials | Discovered new exit (range 5) 570 | -10/Materials | Derelicts attacked the area 612 | -10/Materials | Entered Mines 629 | -10/Mines | Learned 4 Materials zone layouts 637 | -10/Mines | Met a Derelict bent on vengeance 675 | -10/Mines | Discovered new exit (range 11) 712 | -10/Mines | Discovered new exit (range 10) 729 | -10/Mines | Found DCF Scrap (13 items) 805 | -10/Mines | Assisted by bots powering up and referring to "LRC-V3" 902 | -10/Mines | Found the Drone Emporium 909 | -10/Mines | Found Prototype Device 1228 | -10/Mines | Discovered new exit (range 6) 1251 | -10/Mines | A weapon hastily lodged in a ceiling crevice suddenly fell to the ground 1310 | -10/Mines | Identified exit to Subcaves 1360 | -10/Mines | Identified exit to Materials 1489 | -10/Mines | Entered Subcaves 1489 | -10/Subcaves | Accompanied by 5 allies 1496 | -10/Subcaves | Led the pair of lost Derelicts to an unsafe place 1512 | -10/Subcaves | Core integrity fell below 50% 1734 | -10/Subcaves | Shifting Twisted Machinery released Flamer 1743 | -10/Subcaves | Shifting Twisted Machinery released Shrapnel Trap 1779 | -10/Subcaves | Visited Clippyterm 1782 | -10/Subcaves | Learned location of Section 7 (-2) 1817 | -10/Subcaves | Core integrity fell below 20% 1855 | -10/Subcaves | Lost 3 allies 1861 | -10/Subcaves | Lost 3 parts (1p1n1w) 1873 | -10/Subcaves | Visited 4L-MR0's lab 1885 | -10/Subcaves | Found Arachnoskeleton 1920 | -10/Subcaves | Discovered new exit (range 12) 1952 | -10/Subcaves | Identified exit to Materials 1963 | -10/Subcaves | A swath of the cavern ceiling suddenly collapsed 2198 | -10/Subcaves | Build established: Derelict-Mutant 2324 | -10/Subcaves | A swath of the cavern ceiling suddenly collapsed 2347 | -10/Subcaves | Learned location of Zion (-6) 2347 | -10/Subcaves | Met a Zionite searching for "candidates" 2705 | -10/Subcaves | Destroyed by EV-8FJ(R) with Subdweller Laser Last Messages --------------- A swath of the cavern ceiling suddenly collapses. Acquired 8 matter. Acquired Wheel. Acquired 10 matter. Dropped Hacking Suite. Acquired Spk. Treads. Dropped Wheel. Acquired Hacking Suite. Acquired 7 matter. Acquired 13 matter. 4N-68L(z): "She is not going to be happy we haven't found any suitable candidates yet." A swath of the cavern ceiling suddenly collapses. 4N-68L(z): "Hey you! It's really dangerous down here, I feel that you could die at any moment. For your health and safety might I suggest a trip to Zion?" World map updated: -6/Zion. Map ----- +----------------------------------------------------+ | ### ##????? #????? #??????????? | | #### ## ###?? #??????????????????? | | #??## % ### ##??????????????????? | | ##???# #???????????????????? | | ##????# "" " #???????????????????? | | ###???# """"" " ##???????????????????? | | ###?# ###"""" ##????????????????????? | | #?# ## #??????""#??????#??????????????? | | ??????#### ##??????""?????? ##?????????????? | | ????????# ##????????????? #?????????????? | | ????????## #???????????? ??????????????? | | #???????##### #????????????" ??????????????? | | ###?? #?## #???????#### ???????????????? | | # ?## ##???#### " ???????????????? | | ?# "#??## """ #???????????????? | | ?# """#??# " ##??????????????? | | # # ## #?## ##### """" ##?????????????? | | ??#??????????## " ## " " ## ????????? | | ??????????????###" #?# " " ???????? | | ????????????????#" #??# " "" ???????? | | ????????????????#" #??#### R## ##??????????? | | ???????????????## ##?????## #?????#???????????? | | ???????????????# ##????### ##?????????????????? | | ???????????????# #??### ##?????????????????? | | ?????????????#### ###?# #?????????????????? | | ?????????????# #?# @ #####?????????????? | | ?????????????# ##### ## ## # ?????????????? | | ????????????? ?????# ## # ?????????????? | | ????????????#??????# ### # # #;##?????????????? | | ???????????????????# #########"##???###??????? | | ???????????????????# #####?### #####"### #??? | | ??????????????????# ## ### #?####"##"#"""# #??? | | ????????????????? ## #?#"""###""""#"##??? | | ????????????????## ### #?#"""#"###"""###??? | | ?????????????????##??### ###""#"##" ##""#???? | | ???????????????????????# ## #"""""#### ##???? | | ???????????????????????##### #"#"#####"###???? | | ???????????????????????????### "### ###""#???? | | ?????????????????????????????## ##?####?#"##???? | | ??????????????????????????????#####?##""###" #???? | | ???????????????????????????????????## # ## #???? | | ???????????????????????????????????# ## ##??? | | ???????????????????????????????????# #??? | | ???????????????????????????????????# ##??? | | ???????????????????????????????????# ##???? | | ???????????????????????????????????## #####????? | | ????????????????????????????????????# #????????? | | ????????????????????????????????????### #????????? | | ??????????????????????????????????????###????????? | | ?????????????????????????????????????????????????? | +----------------------------------------------------+ Best States ------------- Heat Dissipation 25 Energy Generation 15 Energy Capacity 250 Matter Stores 300 Matter Capacity 300 Sight Range 16 Terrain Scan Density 10 Evasion (%) 44 Recoil Reduction 1 Item Schematics ----------------- None Robot Schematics ------------------ None Fabricated ------------ Nothing Repaired ---------- Nothing Studied --------- None Alien Tech Used ----------------- None Achievements -------------- None Challenges ------------ None Game ------ Seed NanofilamentsPhysicsScreen Manual? 0 Play Time 00:33:40 Cumulative 15.2 hours Start 2025.11.07 @ 19:07:19 End 2025.11.07 @ 20:11:10 Sessions 1 Manual Loads 0 Difficulty Rogue Special Mode None Game No. 12 Rogue 12 Adventurer 0 Explorer 0 Win Type - Total 0 Types 0/0/0/0/0/0/0/0/0/0 Lore% 6 Gallery% 13 Achievement% 13 Wizard Run 0 Options --------- Layout 1 ASCII 0 Keyboard 0 Movement Mouse Keybinds 0 Fullscreen 1 Font 32/SmallcapsGlow Map View 50x35 Zoom Use 0% Tactical HUD 0 Map Filters NONE Filters NONE Steam 0 RUN: eaf9260c-f0d9-4a36-b5b7-3910de81cadd